bitfinex-derivatives/quotes_ETHF0:USTF0_20250531
["timestamp","ask_amount","ask_price","bid_price","bid_amount"]
[1748657933552,0.7945,2516.3,2516.1,0.79455]
[1748657933753,0.7945,2516.3,2516.1,5.316]
[1748657933954,0.79453,2516.2,2516.1,5.316]
[1748657934557,2.16323,2516.3,2516.0,0.79457]
[1748657934756,1.3687,2516.3,2516.0,6.11057]
[1748657934958,0.79454,2516.2,2516.0,6.11057]
[1748657935157,2.16322,2516.3,2516.1,0.79456]
[1748657935352,2.16322,2516.3,2516.0,6.11057]
[1748657935555,2.16322,2516.3,2516.1,2.07445]
[1748657936371,0.79453,2516.2,2516.1,1.2799]
[1748657936571,0.79453,2516.2,2516.0,5.316]
[1748657936771,2.05882,2516.3,2516.0,6.11059]
[1748657936971,0.79453,2516.2,2516.0,6.11059]
[1748657937166,2.05882,2516.3,2516.0,0.79459]
[1748657937370,2.05882,2516.3,2516.0,7.39149]
[1748657938172,1.2643,2516.3,2516.0,2.07449]
[1748657938368,2.05881,2516.3,2516.0,6.5969]
[1748657938573,2.05881,2516.3,2516.0,7.39147]
[1748657939169,2.05881,2516.3,2516.0,7.39146]
[1748657940270,1.2643,2516.3,2516.0,6.5969]
[1748657940479,0.79459,2516.0,2515.9,5.32296659]
[1748657940772,2.05881,2516.3,2515.9,5.32296659]
[1748657940975,2.3986,2516.4,2516.1,0.79455]
[1748657941175,3.19309,2516.4,2516.1,0.79455]
[1748657941476,3.19309,2516.4,2515.9,5.32296659]
[1748657941477,3.19308,2516.4,2516.2,2.16212]
[1748657942071,0.7945,2516.3,2516.2,1.3676]
[1748657942476,2.3986,2516.4,2516.2,1.3676]
[1748657942674,4.07975998,2516.5,2516.3,0.7945]
[1748657942873,3.28531998,2516.5,2516.4,2.14537]
[1748657943183,3.28531998,2516.5,2516.4,7.46237]
[1748657943477,4.07975998,2516.5,2516.4,6.6679]
[1748657943978,4.07975998,2516.5,2516.4,1.3509]
[1748657944179,0.79447,2516.4,2516.3,5.317]
[1748657944677,1.92987,2516.4,2516.3,5.317]
[1748657944980,3.23507,2516.4,2516.3,5.317]
[1748657945278,0.79456,2516.1,2516.0,6.6679]
[1748657945469,2.4406,2516.4,2516.0,6.6679]
[1748657946083,0.79456,2516.1,2516.0,6.6679]
[1748657946271,0.79455,2516.2,2516.0,6.6679]
[1748657946580,2.4406,2516.4,2516.0,6.6679]
[1748657946873,0.79459,2516.0,2515.9,0.00596659]
[1748657947379,0.79453,2516.2,2515.9,0.80059659]
[1748657947579,0.79453,2516.2,2516.0,0.79459]
[1748657947775,1.95151,2516.3,2516.0,0.79459]
[1748657947973,1.157,2516.3,2516.2,0.79453]
[1748657948273,0.79453,2516.3,2516.1,1.243]
[1748657948677,0.79459,2516.0,2515.9,1.15186659]
[1748657948876,0.79459,2516.0,2515.9,6.46886659]
[1748657949275,0.79459,2516.0,2515.9,5.32296659]
[1748657950081,0.79459,2516.0,2515.9,0.00596659]
[1748657950884,0.79459,2516.0,2515.9,1.26766659]
[1748657951478,0.79459,2516.0,2515.9,0.00596659]
[1748657951781,7.05449,2516.0,2515.9,0.00596659]
[1748657951983,8.20397604,2516.0,2515.9,0.00596659]
[1748657952176,0.79472,2515.6,2515.5,45.389]
[1748657952975,1.92872,2515.6,2515.5,45.389]
[1748657953376,1.92872,2515.6,2515.1,1.2078]
[1748657953377,60.18778463,2515.6,2512.9,15.7565512]
[1748657953582,3.2078,2513.3,2513.0,0.07958615]
[1748657953981,23.6668,2513.3,2513.0,0.07958615]
[1748657954280,0.1987,2513.2,2513.1,1.245]
[1748657954681,1.34791859,2513.2,2513.1,1.32458298]
[1748657954882,2.14339859,2513.2,2513.1,1.32458298]
[1748657956182,0.1987,2513.2,2513.1,1.32458298]
[1748657956584,0.99418,2513.2,2513.1,1.245]
[1748657957180,0.1987,2513.2,2512.9,0.00596659]
[1748657957377,4.00334,2513.0,2512.9,0.00596659]
[1748657958487,4.00334,2513.0,2512.9,6.59e-06]
[1748657961187,4.07489339,2513.0,2512.9,6.59e-06]
[1748657963884,3.27935339,2513.0,2512.9,6.59e-06]
[1748657964191,4.07489339,2513.0,2512.9,6.59e-06]
[1748657967387,3.27935339,2513.0,2512.9,6.59e-06]
[1748657967593,3.16357071,2514.3,2513.9,0.79525]
[1748657967789,3.16357071,2514.3,2513.9,6.07625]
[1748657967994,3.2078,2514.8,2514.0,1.98806]
[1748657968293,4.65593351,2515.3,2514.0,1.98806]
[1748657968294,3.2078,2515.1,2514.4,3.2078]
[1748657968491,0.79495,2514.9,2514.5,6.56826659]
[1748657968891,1.35906659,2515.0,2514.5,6.56826659]
[1748657969191,0.79497,2514.8,2514.5,6.56826659]
[1748657969407,0.79495,2514.9,2514.5,6.56826659]
[1748657971494,3.2078,2516.0,2514.8,3.2078]
[1748657971699,3.2078,2516.3,2515.0,3.2078]
[1748657971996,0.79467,2515.8,2515.5,3.2078]
[1748657972294,0.79464,2515.9,2515.6,1.2532]
[1748657972491,0.79468,2515.8,2515.6,1.2532]
[1748657974398,0.86623339,2515.8,2515.6,1.2532]
[1748657974697,0.07155339,2515.8,2515.6,1.2532]
[1748657974991,0.86623339,2515.8,2515.6,1.2532]
[1748657975188,0.79469,2515.7,2515.6,1.2532]
[1748657975595,0.86622339,2515.8,2515.6,1.2532]
[1748657976597,0.79469,2515.7,2515.6,1.2532]
[1748657977590,0.79469,2515.7,2515.5,3.2078]
[1748657977791,0.79472,2515.6,2515.5,3.2078]
[1748657978395,0.79472,2515.6,2515.3,5.279]
[1748657978396,0.79478,2515.4,2515.3,5.279]
[1748657982598,0.79486,2515.2,2514.9,8.4858]
[1748657982992,2.4357,2515.7,2514.9,3.2078]
[1748657983196,21.21972,2515.6,2514.9,8.4858]
[1748657983394,0.79491,2515.0,2514.9,8.4858]
[1748657984695,3.2078,2515.4,2514.9,8.4858]
[1748657985000,0.79491,2515.0,2514.9,8.4858]
[1748657986501,0.79489,2515.1,2514.9,8.4858]
[1748657986700,0.79491,2515.0,2514.9,8.4858]
[1748657988903,0.79491,2515.0,2514.9,5.278]
[1748657990294,1.04706591,2515.0,2514.9,5.278]
[1748657990605,0.86646339,2515.0,2514.9,5.278]
[1748657991593,1.11862375,2515.0,2514.9,5.278]
[1748657991799,0.32371375,2515.0,2514.9,5.278]
[1748657991999,0.86646339,2515.0,2514.9,5.278]
[1748657992200,0.86646339,2515.0,2514.9,6.07294]
[1748657992201,0.07155339,2515.0,2514.9,6.07294]
[1748657992401,0.07155339,2515.0,2514.9,9.28074]
[1748657992597,0.07155339,2515.0,2514.9,14.28074]
[1748657992808,2.35145375,2515.9,2514.9,13.4858]
[1748657993105,0.79473,2515.6,2515.3,4.0026]
[1748657993402,0.79472,2515.6,2515.3,3.2078]
[1748657993604,0.79475,2515.5,2515.3,4.00259]
[1748657993804,0.79478,2515.4,2515.3,3.2078]
[1748657994300,0.79475,2515.5,2515.3,3.2078]
[1748657994501,0.79478,2515.4,2515.3,3.2078]
[1748657994910,0.25211183,2515.8,2515.3,3.2078]
[1748657995209,1.36283453,2515.4,2515.3,3.2078]
[1748657996104,1.61497229,2515.4,2515.3,3.2078]
[1748657996299,2.15761453,2515.4,2515.3,3.2078]
[1748657996503,1.36283453,2515.4,2515.3,3.2078]
[1748657996704,2.15761453,2515.4,2515.3,3.2078]
[1748657997004,2.40974874,2515.4,2515.3,3.2078]
[1748657997208,2.15761453,2515.4,2515.3,3.2078]
[1748657997609,0.79481,2515.3,2515.2,6.6093]
[1748657997909,1.36283453,2515.3,2515.2,6.6093]
[1748657998606,2.15764453,2515.3,2515.2,6.6093]
[1748657999003,2.39103795,2515.3,2515.2,6.6093]
[1748657999208,1.59622795,2515.3,2515.2,15.61194]
[1748658000402,1.59622795,2515.3,2515.2,14.8171]
[1748658000608,1.59622795,2515.3,2515.2,10.61194]
[1748658000798,1.59622795,2515.3,2515.2,9.8171]
[1748658001109,0.23339342,2515.3,2515.2,10.61194]
[1748658001414,1.60326335,2515.3,2515.2,10.61194]
[1748658001907,2.39807335,2515.3,2515.2,4.5681]
[1748658002608,1.60326335,2515.3,2515.2,4.5681]
[1748658002806,2.39807335,2515.3,2515.2,4.5681]
[1748658003002,1.60326335,2515.3,2515.2,10.36294]
[1748658003916,2.35145375,2515.7,2515.6,0.79472]
[1748658004210,2.35145375,2515.7,2515.6,9.25052]
[1748658004416,2.35145375,2515.7,2515.6,14.25052]
[1748658004613,0.25211183,2515.8,2515.6,14.25052]
[1748658004614,1e-08,2515.8,2515.7,0.79469]
[1748658004815,1e-08,2515.8,2515.7,1.89869]
[1748658005009,1e-08,2515.8,2515.7,6.89869]
[1748658005210,1e-08,2515.8,2515.7,1.89869]
[1748658005414,1e-08,2515.8,2515.7,7.14669]
[1748658006416,1e-08,2515.8,2515.7,5.248]
[1748658006616,0.79466001,2515.8,2515.7,5.248]
[1748658007018,0.7947,2515.7,2515.5,5.248]
[1748658007317,1e-08,2515.8,2515.5,6.04275]
[1748658007619,1e-08,2515.8,2515.5,7.39545]
[1748658007816,0.7947,2515.7,2515.5,6.6007]
[1748658008014,0.7947,2515.7,2515.5,7.39545]
[1748658008214,2.07257001,2515.8,2515.5,7.39545]
[1748658008814,1.27790001,2515.8,2515.6,0.7947]
[1748658009019,1e-08,2515.8,2515.7,0.79469]
[1748658009513,1e-08,2515.8,2515.7,7.14099]
[1748658011018,1e-08,2515.8,2515.7,2.14099]
[1748658012813,1e-08,2515.8,2515.7,7.14099]
[1748658013117,1e-08,2515.8,2515.7,2.14099]
[1748658015919,1e-08,2515.8,2515.7,1.3463]
[1748658016113,1e-08,2515.8,2515.7,2.14099]
[1748658016618,0.79469,2515.7,2515.6,3.2078]
[1748658016824,0.79469,2515.7,2515.6,8.4548]
[1748658017025,2.09749,2515.7,2515.6,8.4548]
[1748658017323,2.09749,2515.7,2515.6,9.24952]
[1748658017324,1.3028,2515.7,2515.6,9.24952]
[1748658017719,1e-08,2515.8,2515.7,0.79469]
[1748658018419,1e-08,2515.8,2515.7,2.03669]
[1748658019918,0.2700534,2515.8,2515.7,2.03669]
[1748658020120,0.2700534,2515.8,2515.7,7.28369]
[1748658021115,2.1077,2516.5,2516.3,0.79448]
[1748658021321,2.1077,2516.5,2515.7,11.489]
[1748658021322,2.1077,2516.5,2516.2,3.2078]
[1748658021622,2.64404184,2516.4,2516.1,0.79455]
[1748658021817,0.79451,2516.3,2516.1,0.79455]
[1748658022018,1.3019,2516.2,2516.1,0.79455]
[1748658022619,1.34214184,2516.2,2516.1,0.79455]
[1748658022822,1.34214184,2516.2,2516.1,2.12205]
[1748658023022,1.34214184,2516.2,2516.1,5.32985]
[1748658023724,1.34214184,2516.4,2516.3,0.7945]
[1748658023924,2.70744184,2516.4,2516.3,0.7945]
[1748658024227,1.34214184,2516.4,2516.3,0.7945]
[1748658024922,0.00596,2516.5,2516.4,0.79447]
[1748658025119,0.00596,2516.5,2516.4,9.21727]
[1748658029020,0.00596,2516.5,2516.4,10.46107]
[1748658031826,3.2078,2517.5,2516.5,1.9861]
[1748658032030,0.79428,2517.1,2516.9,3.2078]
[1748658032225,0.79428,2517.1,2517.0,5.214]
[1748658032431,2.64581381,2517.2,2517.0,5.214]
[1748658032729,2.64581381,2517.2,2517.0,6.00828]
[1748658032730,1.2894,2517.1,2517.0,6.00828]
[1748658032935,2.08365,2517.1,2517.0,5.214]
[1748658033126,1.2894,2517.1,2517.0,6.00828]
[1748658033634,2.2906,2517.4,2517.0,5.214]
[1748658033932,3.08476,2517.4,2517.2,0.7942]
[1748658034127,3.08476,2517.4,2517.0,5.214]
[1748658034128,3.58,2517.4,2517.0,5.214]
[1748658034334,1.34158562,2517.3,2517.0,5.214]
[1748658034535,0.79422,2517.2,2517.0,7.30416]
[1748658034726,3.42518562,2517.3,2517.1,0.79425]
[1748658035321,1.2894,2517.3,2517.0,6.5099]
[1748658035527,2.2906,2517.4,2517.0,6.5099]
[1748658035729,2.2906,2517.4,2517.3,0.79418]
[1748658035932,3.08475,2517.4,2517.2,4.00199]
[1748658036232,2.2906,2517.4,2517.2,4.00199]
[1748658036736,3.08476,2517.4,2517.2,4.00199]
[1748658037126,2.2906,2517.4,2517.0,6.5099]
[1748658037326,0.79424,2517.2,2517.0,7.30418]
[1748658037528,2.03979,2517.3,2517.1,0.79423]
[1748658037835,0.79425,2517.1,2517.0,6.5099]
[1748658038029,1.2456,2517.3,2517.0,5.214]
[1748658038232,0.07155339,2517.1,2517.0,5.214]
[1748658038536,0.07155339,2517.1,2517.0,6.00828]
[1748658039630,0.07155339,2517.1,2517.0,7.30388]
[1748658041137,0.07155339,2517.1,2517.0,6.5096]
[1748658041338,0.86580339,2517.1,2517.0,5.214]
[1748658041537,2.13080339,2517.1,2517.0,5.214]
[1748658042132,0.79437,2516.7,2516.6,3.2078]
[1748658042434,1.33655339,2517.1,2516.6,3.2078]
[1748658042634,0.79437,2516.7,2516.6,3.2078]
[1748658043537,1.33655339,2517.1,2516.6,3.2078]
[1748658043731,1.33655339,2517.1,2516.8,0.79433]
[1748658043933,0.79431,2516.9,2516.7,2.05746]
[1748658044229,0.79436,2516.8,2516.6,3.2078]
[1748658044440,2.11356,2516.8,2516.6,3.2078]
[1748658044736,2.11356,2516.8,2516.6,4.0022]
[1748658045133,2.11356,2516.8,2516.6,9.2152]
[1748658045532,1.3192,2516.8,2516.6,9.21518]
[1748658045732,2.11354,2516.8,2516.6,9.21518]
[1748658046039,1.3192,2516.8,2516.6,9.21518]
[1748658046238,2.11354,2516.8,2516.6,9.21518]
[1748658046442,0.03,2516.7,2516.6,9.21518]
[1748658047041,0.82437,2516.7,2516.6,8.4208]
[1748658047339,0.03,2516.7,2516.6,9.2152]
[1748658047535,0.82437,2516.7,2516.6,8.4208]
[1748658048730,1.92947,2516.7,2516.6,8.4208]
[1748658050240,2.00102339,2516.7,2516.6,8.4208]
[1748658054243,2.00102339,2516.7,2516.6,3.2078]
[1748658056046,3.34487525,2516.7,2516.6,3.2078]
[1748658056842,0.79444,2516.5,2516.4,5.176]
[1748658059044,0.79447,2516.4,2516.3,3.2078]
[1748658059239,1.94497,2516.4,2516.3,3.2078]
[1748658059447,3.28890841,2516.4,2516.3,3.2078]
[1748658060042,3.28890841,2516.4,2516.0,8.3838]
[1748658060043,0.79456,2516.1,2516.0,8.3838]
[1748658060938,1.2798,2516.3,2516.0,8.3838]
[1748658061343,0.0301,2516.2,2516.0,8.3838]
[1748658061552,0.79456,2516.1,2516.0,8.3838]
[1748658062243,0.79456,2516.1,2516.0,3.2078]
[1748658062640,0.79469,2515.7,2515.6,5.176]
[1748658062847,0.79481,2515.3,2515.2,8.3838]
[1748658063144,0.79485,2515.2,2515.1,1.2829]
[1748658063343,3.2078,2515.5,2514.9,11.20050677]
[1748658063540,2.3991,2515.4,2514.9,13.34130336]
[1748658063745,2.3991,2515.4,2514.9,13.59487336]
[1748658063947,0.79488,2515.1,2514.9,13.59487336]
[1748658064857,0.79491,2515.0,2514.9,13.59487336]
[1748658065151,0.79491,2515.0,2514.9,12.54637336]
[1748658065755,0.79489,2515.1,2514.9,12.54637336]
[1748658065950,1.1455,2515.3,2514.9,13.34129336]
[1748658066145,0.79491,2515.0,2514.9,9.33857336]
[1748658066349,2.4507,2515.3,2514.9,9.33857336]
[1748658066549,0.79491,2515.0,2514.9,9.33857336]
[1748658066959,0.79491,2515.0,2514.9,7.99867336]
[1748658067358,0.79489,2515.1,2514.9,7.99867336]
[1748658067556,0.79491,2515.0,2514.9,7.99867336]
[1748658067755,0.79491,2515.0,2514.9,9.37357336]
[1748658068251,3.2078,2515.2,2514.9,9.37357336]
[1748658068443,4.00266,2515.2,2514.9,10.16849336]
[1748658068645,4.00265,2515.2,2514.9,9.37357336]
[1748658068855,4.00265,2515.2,2514.9,10.16849336]
[1748658069149,0.79488,2515.1,2514.9,10.16849336]
[1748658069761,4.00265,2515.2,2514.9,10.16849336]
[1748658069963,3.2078,2515.2,2514.9,9.37357336]
[1748658070165,3.2078,2515.2,2515.1,0.79488]
[1748658071055,3.2078,2515.2,2515.0,0.79489]
[1748658071258,4.00265,2515.2,2515.1,1.3082]
[1748658072951,0.79491,2515.0,2514.9,0.00596659]
[1748658073659,2.10401,2515.0,2514.9,0.00596659]
[1748658074063,3.2078,2515.2,2514.9,0.00596659]
[1748658074358,3.2078,2515.2,2515.0,5.178]
[1748658074555,3.2078,2515.2,2515.1,1.2762]
[1748658074755,3.2078,2515.2,2515.1,2.07108]
[1748658074956,6.49588998,2515.5,2515.2,0.79482]
[1748658075263,1.97897998,2515.5,2515.3,2.144]
[1748658075562,1.18421998,2515.5,2515.3,1.3492]
[1748658075765,0.79478,2515.4,2515.3,1.3492]
[1748658076561,0.79481,2515.3,2515.2,1.128]
[1748658076761,0.7948,2515.4,2515.2,3.27204]
[1748658077358,1.18421998,2515.5,2515.3,0.7948]
[1748658077562,1.18421998,2515.5,2515.3,2.144]
[1748658077767,3.28531998,2515.5,2515.4,0.79478]
[1748658077963,3.28531998,2515.5,2515.4,2.14398]
[1748658078168,0.07751998,2515.5,2515.4,2.14398]
[1748658079162,0.07751998,2515.5,2515.4,1.3492]
[1748658079358,0.07751998,2515.5,2515.3,5.179]
[1748658079560,0.79478,2515.4,2515.3,5.179]
[1748658079762,0.87228998,2515.5,2515.3,5.97381]
[1748658079963,0.07751998,2515.5,2515.3,5.97381]
[1748658080164,0.07751998,2515.5,2515.3,5.179]
[1748658080469,0.87227998,2515.5,2515.3,5.97381]
[1748658080768,0.87227998,2515.5,2515.3,7.29381]
[1748658081567,0.79478,2515.4,2515.3,6.499]
[1748658081862,0.87228998,2515.5,2515.3,6.499]
[1748658082073,0.07751998,2515.5,2515.3,6.499]
[1748658082267,0.07751998,2515.5,2515.4,0.79478]
[1748658082568,0.07751998,2515.5,2515.4,2.11978]
[1748658082964,0.79491,2515.0,2514.9,0.00596659]
[1748658083160,5.6235,2515.4,2515.0,0.7949]
[1748658083665,3.2078,2515.4,2515.3,0.79481]
[1748658084169,1.07097998,2515.5,2515.1,0.79485]
[1748658084170,0.79483,2515.3,2515.1,0.79485]
[1748658084360,0.79483,2515.3,2515.2,1.3748]
[1748658085677,2.32879998,2515.5,2515.2,2.16965]
[1748658085969,0.27621998,2515.5,2515.2,1.3748]
[1748658086155,1.07097998,2515.5,2515.3,2.1696]
[1748658086361,0.27621998,2515.5,2515.3,1.3748]
[1748658086768,0.79478,2515.4,2515.3,1.3748]
[1748658086958,0.79478,2515.4,2514.9,3.21376659]
[1748658086959,3.2078,2515.4,2514.9,3.21376659]
[1748658087163,3.2078,2515.4,2515.0,5.139]
[1748658087164,0.79487,2515.2,2515.0,5.139]
[1748658087459,1.2578,2515.3,2515.0,5.139]
[1748658087460,0.79488,2515.1,2515.0,5.139]
[1748658089156,4.00268,2515.1,2515.0,5.139]
[1748658089564,5.36669184,2515.1,2515.0,5.139]
[1748658089968,1.36401184,2515.1,2515.0,5.139]
[1748658090267,2.15889184,2515.1,2515.0,5.139]
[1748658090465,5.66789184,2515.1,2515.0,5.139]
[1748658091062,4.87301184,2515.1,2515.0,5.139]
[1748658091965,5.66789184,2515.1,2515.0,5.139]
[1748658092468,1.36401184,2515.1,2515.0,5.93391]
[1748658092668,1.36401184,2515.1,2515.0,7.17401]
[1748658093662,1.36401184,2515.1,2514.9,0.00596659]
[1748658093863,0.79491,2515.0,2514.9,0.00596659]
[1748658094069,2.08191,2515.0,2514.9,0.00596659]
[1748658094568,3.44592184,2515.0,2514.9,0.00596659]
[1748658096269,1.36401184,2515.0,2514.9,0.80090659]
[1748658097065,1.36401184,2515.0,2514.9,2.07360659]
[1748658098072,1.36401184,2515.0,2514.9,7.21360659]
[1748658099673,1.36401184,2515.0,2514.9,6.41866659]
[1748658099876,2.15892184,2515.0,2514.9,0.00596659]
[1748658100175,1.98738,2514.9,2514.1,7.3143]
[1748658100375,0.79513,2514.3,2514.1,6.2148]
[1748658100575,0.79512,2514.4,2514.1,7.00999]
[1748658100875,3.18162,2514.4,2514.1,8.30709]
[1748658101066,2.3865,2514.4,2514.2,0.79515]
[1748658101266,3.2078,2514.8,2514.1,7.5119]
[1748658101468,1.36529802,2514.3,2514.2,2.09226]
[1748658102074,0.79502,2514.7,2514.4,0.79508]
[1748658102276,2.3865,2514.8,2514.4,0.79508]
[1748658102579,0.79502,2514.7,2514.4,0.79508]
[1748658102786,1.35926372,2514.7,2514.3,0.7951]
[1748658102976,0.79508,2514.5,2514.3,0.7951]
[1748658103275,0.79509,2514.5,2514.2,1.2971]
[1748658103472,0.7951,2514.4,2514.2,2.09225]
[1748658103672,0.7951,2514.4,2514.2,1.2971]
[1748658103865,0.7951,2514.4,2514.1,9.4226]
[1748658103866,0.79516,2514.2,2514.1,8.3478]
[1748658104072,0.79516,2514.2,2514.0,0.00596659]
[1748658104073,0.79519,2514.1,2514.0,0.00596659]
[1748658104277,2.09289,2514.1,2514.0,0.00596659]
[1748658105383,3.452261,2514.1,2514.0,0.00596659]
[1748658107380,2.09289,2514.1,2514.0,0.00596659]
[1748658108182,3.2078,2514.2,2514.1,0.79519]
[1748658108479,3.2078,2514.2,2514.0,0.00596659]
[1748658108881,5.30508,2514.2,2514.0,0.00596659]
[1748658109179,4.5099,2514.2,2514.0,0.80118659]
[1748658109481,5.30508,2514.2,2514.0,0.00596659]
[1748658109669,4.5099,2514.2,2514.0,0.00596659]
[1748658110269,5.30509,2514.2,2514.0,0.00596659]
[1748658110478,1.3021,2514.2,2514.0,0.00596659]
[1748658110678,3.48795,2514.3,2514.1,0.79519]
[1748658110878,3.48795,2514.3,2514.1,1.2505]
[1748658111077,0.07155339,2514.2,2514.1,1.2505]
[1748658111280,0.07155339,2514.2,2514.1,2.04569]
[1748658111483,0.07155339,2514.2,2514.1,1.2505]
[1748658112183,0.86671339,2514.2,2514.1,1.2505]
[1748658112680,0.07155339,2514.2,2514.1,2.04569]
[1748658112874,0.86671339,2514.2,2514.1,1.2505]
[1748658113078,0.86671339,2514.2,2514.0,0.00596659]
[1748658113079,0.07155339,2514.2,2514.0,0.00596659]
[1748658113384,0.79519,2514.1,2514.0,0.00596659]
[1748658113787,0.99399,2514.1,2514.0,0.00596659]
[1748658113986,2.32529,2514.1,2514.0,0.00596659]
[1748658114185,0.1988,2514.1,2514.0,0.80119659]
[1748658115881,0.99399,2514.1,2514.0,0.00596659]
[1748658116079,0.1988,2514.1,2514.0,0.00596659]
[1748658116281,0.1988,2514.1,2514.0,7.16079659]
[1748658116683,0.1988,2514.1,2514.0,6.36556659]
[1748658116883,0.99399,2514.1,2514.0,6.36556659]
[1748658117980,0.1988,2514.1,2514.0,6.36556659]
[1748658118381,0.99399,2514.1,2514.0,6.36556659]
[1748658118681,0.99399,2514.1,2514.0,0.00596659]
[1748658118887,2.31919,2514.1,2514.0,0.00596659]
[1748658119091,3.62859,2514.1,2514.0,0.00596659]
[1748658119887,4.98656184,2514.1,2514.0,0.00596659]
[1748658121081,4.19137184,2514.1,2514.0,0.00596659]
[1748658121287,4.98656184,2514.1,2514.0,0.00596659]
[1748658122088,0.79554,2513.1,2512.9,3.2078]
[1748658122383,4.00326,2513.3,2512.7,1.35]
[1748658122580,1.2812,2513.2,2512.8,1.2657]
[1748658122780,1.2812,2513.2,2512.9,0.79557]
[1748658122982,3.43466184,2513.2,2512.9,1.35]
[1748658123284,3.93867184,2513.2,2512.9,2.14556]
[1748658123786,2.5807,2513.2,2512.9,2.14556]
[1748658123993,2.07668,2513.2,2512.9,2.14556]
[1748658124192,2.07668,2513.2,2512.9,1.35]
[1748658124484,0.79551,2513.1,2512.9,1.35]
[1748658124886,0.79554,2513.0,2512.8,6.37366659]
[1748658125077,2.15726,2513.0,2512.8,5.10796659]
[1748658125278,0.79557,2512.9,2512.8,5.10796659]
[1748658125679,4.00337,2512.9,2512.8,5.10796659]
[1748658125879,4.00337,2512.9,2512.8,0.00596659]
[1748658127892,3.2078,2512.9,2512.8,0.00596659]
[1748658128192,2.15725,2513.0,2512.8,0.00596659]
[1748658128486,0.79555,2513.0,2512.8,1.30386659]
[1748658128686,26.01945339,2513.2,2512.8,1.30386659]
[1748658128894,2.64865339,2513.2,2512.8,1.30386659]
[1748658129190,4.56055339,2513.2,2512.8,1.30386659]
[1748658129493,0.79551,2513.1,2512.8,2.09945659]
[1748658129790,0.79555,2513.0,2512.8,1.30386659]
[1748658129988,0.79557,2512.9,2512.8,1.30386659]
[1748658130193,0.79557,2512.9,2512.8,0.00596659]
[1748658130991,5.85645339,2513.2,2512.8,0.00596659]
[1748658131591,0.79554,2513.1,2512.8,2.09785659]
[1748658131786,5.85645339,2513.2,2512.8,2.09785659]
[1748658131986,26.01445339,2513.2,2512.8,1.30226659]
[1748658132187,5.85645339,2513.2,2512.8,0.00596659]
[1748658132491,4.56055339,2513.2,2512.8,0.00596659]
[1748658132687,5.35604339,2513.2,2512.9,0.79555]
[1748658132888,5.35604339,2513.2,2513.0,2.09184]
[1748658133088,0.79551,2513.1,2513.0,1.2963]
[1748658134197,2.14825339,2513.2,2513.0,2.09184]
[1748658134402,0.07155339,2513.2,2513.0,1.2963]
[1748658134699,0.07155339,2513.2,2513.1,0.79551]
[1748658134894,0.07155339,2513.2,2513.1,3.28761]
[1748658135097,0.07155339,2513.2,2513.1,8.28761]
[1748658135798,0.79557,2512.9,2512.8,0.00596659]
[1748658135997,4.00337,2512.9,2512.8,0.00596659]
[1748658136591,5.36019246,2512.9,2512.8,0.00596659]
[1748658138900,0.7957,2512.5,2512.4,5.104]
[1748658140804,0.79576,2512.3,2512.2,0.00596659]
[1748658141005,4.00356,2512.3,2512.2,0.00596659]
[1748658141201,8.2078,2512.3,2511.7,6.3099]
[1748658141407,0.79586,2512.0,2511.7,7.10583]
[1748658141605,1.5354,2512.2,2511.7,6.3099]
[1748658141793,0.79591,2511.9,2511.7,5.104]
[1748658142003,1.5354,2512.2,2511.7,5.104]
[1748658142198,0.79592,2511.8,2511.7,5.10996659]
[1748658144004,0.79591,2511.9,2511.7,5.10996659]
[1748658144308,3.21376659,2512.0,2511.7,6.47366659]
[1748658144512,0.00596659,2512.0,2511.7,6.47366659]
[1748658144807,0.80184659,2512.0,2511.8,1.3637]
[1748658145107,0.79589,2511.9,2511.8,1.3637]
[1748658145609,0.79592,2511.8,2511.7,5.10996659]
[1748658146508,2.05472,2511.8,2511.7,5.10996659]
[1748658147204,2.5407,2511.9,2511.7,5.10996659]
[1748658147410,3.3366,2511.9,2511.7,5.10996659]
[1748658147811,0.79592,2511.8,2511.7,5.10996659]
[1748658148013,3.33661,2511.9,2511.7,6.36246659]
[1748658148209,0.79592,2511.8,2511.7,6.36246659]
[1748658148713,0.79592,2511.8,2511.7,5.10996659]
[1748658149306,0.79592,2511.8,2511.7,0.00596659]
[1748658149807,2.06152,2511.8,2511.7,0.00596659]
[1748658150008,8.41858855,2511.8,2511.7,0.00596659]
[1748658150308,1.99,2511.6,2510.7,3.2078]
[1748658150609,3.2078,2511.1,2510.9,5.067]
[1748658150806,3.2078,2511.1,2511.0,2.13968]
[1748658151009,22.75266855,2511.5,2511.4,0.79605]
[1748658151208,22.28308855,2511.5,2511.2,0.79611]
[1748658151401,22.28309855,2511.5,2511.3,1.3745]
[1748658151601,1.35706855,2511.5,2511.4,0.79605]
[1748658151807,1.35706855,2511.5,2511.4,6.3066]
[1748658152003,3.2078,2511.8,2511.4,6.3066]
[1748658152209,3.2078,2511.5,2511.4,6.3066]
[1748658152409,2.17368981,2511.7,2511.5,0.79601]
[1748658152603,2.17368981,2511.7,2511.4,6.3066]
[1748658152604,0.79599,2511.6,2511.4,7.10264]
[1748658152811,0.79598,2511.6,2511.4,6.3066]
[1748658153117,2.17369981,2511.7,2511.4,7.10264]
[1748658153314,1.37772981,2511.5,2511.4,7.10263]
[1748658153910,0.79599,2511.6,2511.4,6.3066]
[1748658154210,0.79597,2511.7,2511.4,7.10264]
[1748658154815,1.37725517,2511.6,2511.5,1.3103]
[1748658155114,2.17323517,2511.6,2511.5,1.3103]
[1748658155817,0.79602,2511.5,2511.4,5.068]
[1748658156214,2.13442,2511.5,2511.4,5.068]
[1748658156414,0.79602,2511.5,2511.4,5.068]
[1748658156610,0.86757339,2511.5,2511.4,5.068]
[1748658156817,0.07155339,2511.5,2511.4,5.86405]
[1748658157116,0.07155339,2511.5,2511.4,5.068]